{"text_format":"1","workbook":"xlsx","n_sheets":14,"sheets":["Application Information","Table of Contents","Applicant Info","Eligibility","Project Info","Proposed Outcome Measurements","Activities","Match Funds","Project Budget","Expense Details","Budget Summary","Past Performance ","Certification","Factors."],"not_rendered":{"charts":0,"images":2,"macros":1,"external_links":1,"defined_names":27,"comments":1,"pivot_tables":0},"unopened":[],"bounds":{"document_bytes":16777216,"sheet_cells":100000,"rows_first":2000,"rows_last":500,"rows_between":2000,"halvings":0,"cell_chars":16384,"cell_head_chars":4096},"cells_cut":0,"cells_raw":0,"read":"whole","date_system":"1900"}

{"sheet":"Application Information","index":0,"n_rows":89,"n_cols":9,"rows_kept":89,"cut":false,"hidden":false,"merged":[[10,2,10,11],[18,2,18,11],[17,2,17,11],[88,3,88,5],[11,3,11,7],[12,3,12,7],[3,2,3,11],[32,2,32,11],[33,2,33,11],[34,2,34,11],[4,2,4,11],[27,2,27,11],[28,2,28,11],[6,2,6,11],[9,2,9,11],[22,2,22,11],[25,2,25,11],[26,2,26,11],[16,2,16,11]]}
[]
[]
[]
[null,null,"MISSISSIPPI HOME CORPORATION"]
[null,null,"EMERGENCY SOLUTIONS GRANT (ESG) PROGRAM"]
[]
[null,null,"FY 2020 - 2021  ESG APPLICATION"]
[]
[null,null,"APPLICATION CYCLE"]
[null,null,"Applications for the Emergency Solutions Grant (ESG) Program will be accepted during the application cycle stated below.  Applications will only be accepted during the designated dates and time.  There will not be any exceptions for late applications."]
[null,null,"FY 2020 Application Cycle"]
[null,null,null,"Application Submission Open Date:",null,null,null,null,"Monday, April 27, 2020"]
[null,null,null,"Application Submission Close Date:",null,null,null,null,"Thursday, April 30, 2020 @ 4:00 pm"]
[]
[]
[null,null,"APPLICATION PACKAGE"]
[null,null,"The Application Package must consist of the hard copy application (with original signatures) and the required documents listed in the application.  In addition, an electronic version of this Excel application must be submitted through email to faye.mccall@mshc.com and copy to erica.fell@mshc.com.  All hard copy documents must be bound in a:"]
[null,null,"Smead Pressboard Fastener Folder with SafeShield Fasteners, 3\" Expansion, Legal Size"]
[null,null,"All documents must be submitted in the order listed in the Table of Contents.  The application folder must be clearly marked with the Applicant's name and application year.  If more than one folder is used, all folders must be marked and include the Table of Contents.  All applications must be typewritten and properly executed.  Application forms from prior years may not be used.  Failure to submit the Application Package properly may result in a deduction of points.  Incomplete or late applications will not be considered for funding."]
[]
[]
[null,null,"APPLICATION SUBMISSION"]
[null,null,"All Applicants must submit an original and one (1) copy of the application to MHC by the Cycle Close Date.  All applications are considered final at the time they are received.  Additional information cannot be submitted unless specifically requested by MHC."]
[null,null,"Applications must be mailed or hand delivered to the following address:"]
[]
[null,null,"MISSISSIPPI HOME CORPORATION"]
[null,null,"Attn:  Faye McCall"]
[null,null,"735 Riverside Drive"]
[null,null,"Jackson, MS 39202"]
[]
[]
[null,null,"TECHNICAL ASSISTANCE"]
[null,null,"If you need assistance during the application cycle, please contact:"]
[null,null,"Faye McCall at (601) 718-4668 / faye.mccall@mshc.com or"]
[null,null,"Erica Fell at (601) 718-4681 / erica.fell@mshc.com"]
[]
[]
[]
[]
[]
[]
[]
[]
[]
[]
[]
[]
[]
[]
[]
[]
[]
[]
[]
[]
[]
[]
[]
[]
[]
[]
[]
[]
[]
[]
[]
[]
[]
[]
[]
[]
[]
[]
[null,null,null,"Smead® Pressboard Fastener Folders With SafeSHIELD® Fasteners, 3\" Expansion, Legal Size, 60% Recycled, Gray/Green, Box Of 25 Item # 935783"]
[]
[]
[]
[]
[]
[]
[]
[]
[]
[]
[]
[]
[]
[]
[null,null,null,"<GO BACK>"]

{"sheet":"Table of Contents","index":1,"n_rows":72,"n_cols":6,"rows_kept":72,"cut":false,"hidden":false,"merged":[[71,5,71,12],[5,2,5,12],[7,2,7,12],[2,2,3,12],[67,5,67,12],[69,5,69,12]]}
[]
[]
[null,null,"2020 - 2021 EMERGENCY SOLUTIONS GRANT APPLICATION"]
[]
[]
[null,null,"TABLE OF CONTENTS"]
[]
[null,null,"The following documents must be submitted with the application.  All items indexed must be tabbed and numbered accordingly.  "]
[]
[null,null,"APPLICANT:",null,null,{"$f":"IF('Applicant Info'!E17=\"\",\"\",'Applicant Info'!E17)","v":""}]
[]
[null,null,"I.","General Information"]
[]
[null,null,null,null,"1.","Cover Letter"]
[]
[null,null,null,null,"2.","Executed Application"]
[]
[null,null,null,null,"3.","Project Narrative (see Project Narrative Guide for guidance)"]
[]
[null,null,null,null,"4.","Site Control Documentation (for Shelters only)"]
[]
[null,null,null,null,"5.","Policy and Procedures Manual"]
[]
[null,null,"II.","Organization Documents"]
[]
[null,null,null,null,"1.","Articles of Incorporation"]
[]
[null,null,null,null,"2.","Bylaws and/or constitution"]
[]
[null,null,null,null,"3.","Certificate of Good Standing from Mississippi Secretary of State"]
[]
[null,null,null,null,"4.","IRS 501(c)(3) Status Letter"]
[]
[null,null,null,null,"5.","Organization Chart of Agency Board"]
[]
[null,null,null,null,"6.","List of Board Members (include name, city and state of residence, occupation, email address)"]
[]
[null,null,null,null,"7.","Letter from Board identifying homeless member"]
[]
[null,null,null,null,"8.","Key Staff Resumes"]
[]
[null,null,"III.","Threshold Factors"]
[]
[null,null,null,null,"1.","Current Financial Statements and IRS Form 990"]
[]
[null,null,null,null,"2.","Section 3 Summary Report Form HUD 60002"]
[]
[null,null,null,null,"3.","Board resolution demonstrating approval to apply for grant"]
[]
[null,null,null,null,"4.","Local Government Certification (Attachment A)/Support Letters "]
[]
[null,null,null,null,"5.","Match Funds Documentation"]
[]
[null,null,"IV.","Scoring Factors Documentation"]
[]
[null,null,null,null,"1.","Scoring Sheet (Attachment B)"]
[]
[null,null,null,null,"2.","Applicant Experience & Capacity Form (Attachment C)"]
[]
[null,null,null,null,"3.","Memorandum of Understanding for Services"]
[]
[null,null,null,null,"4.","CoC Letter"]
[]
[null,null,null,null,"5.","Past Performance Report"]
[]
[null,null,"V.","Other Attachments (please describe)"]
[]
[null,null,null,null,"1."]
[]
[null,null,null,null,"2."]
[]
[null,null,null,null,"3."]

{"sheet":"Applicant Info","index":2,"n_rows":96,"n_cols":17,"rows_kept":96,"cut":false,"hidden":false,"merged":[[80,10,80,12],[44,4,44,16],[67,4,67,10],[52,4,52,10],[30,4,30,9],[3,3,3,16],[4,3,4,16],[5,3,5,16],[9,2,9,16],[16,12,16,13],[16,14,16,16],[16,4,16,10],[28,4,28,7],[22,4,22,16],[18,4,18,7],[19,4,19,7],[26,4,26,7],[26,14,26,16],[28,14,28,16],[46,4,46,7],[46,9,46,10],[18,9,18,10],[19,9,19,10],[20,4,20,7],[82,10,82,12],[83,10,83,12],[84,10,84,12],[85,10,85,12],[86,10,86,12],[87,3,87,5],[88,3,88,5],[82,6,82,9],[83,6,83,9],[84,6,84,9],[20,9,20,10],[21,4,21,7],[21,9,21,10],[39,3,39,16],[73,3,73,16],[24,4,24,7],[24,10,24,16],[79,10,79,12],[47,9,47,10],[75,6,75,7],[81,10,81,12],[89,10,89,12],[78,3,78,16],[48,4,48,7],[50,4,50,7],[63,4,63,7],[65,4,65,7],[59,4,59,16],[61,4,61,7],[61,9,61,10],[79,6,79,9],[79,3,79,5],[62,9,62,10],[80,6,80,9],[81,6,81,9],[89,6,89,9],[80,3,80,5],[81,3,81,5],[89,3,89,5],[82,3,82,5],[83,3,83,5],[84,3,84,5],[87,10,87,12],[88,10,88,12],[111,6,111,9],[93,3,93,16],[95,10,95,16],[96,10,96,16],[97,10,97,16],[98,10,98,16],[98,3,98,5],[97,3,97,5],[97,6,97,9],[99,10,99,16],[100,10,100,16],[101,10,101,16],[102,10,102,16],[103,10,103,16],[108,10,108,16],[109,10,109,16],[110,10,110,16],[111,10,111,16],[95,3,95,5],[95,6,95,9],[96,3,96,5],[108,6,108,9],[109,6,109,9],[110,6,110,9],[104,6,104,9],[105,6,105,9],[106,6,106,9],[107,6,107,9],[96,6,96,9],[98,6,98,9],[99,6,99,9],[100,6,100,9],[101,6,101,9],[102,6,102,9],[103,6,103,9],[7,2,7,17],[111,3,111,5],[99,3,99,5],[100,3,100,5],[101,3,101,5],[102,3,102,5],[106,3,106,5],[107,3,107,5],[103,3,103,5],[108,3,108,5],[109,3,109,5],[110,3,110,5],[104,3,104,5],[105,3,105,5],[104,10,104,16],[105,10,105,16],[106,10,106,16],[107,10,107,16],[85,6,85,9],[86,6,86,9],[87,6,87,9],[88,6,88,9],[85,3,85,5],[86,3,86,5]]}
[]
[]
[]
[null,null,null,"MISSISSIPPI HOME CORPORATION"]
[null,null,null,"735 Riverside Drive |  Jackson  |  MS  |  39056"]
[null,null,null,"EMERGENCY SOLUTIONS GRANT (ESG) PROGRAM"]
[]
[null,null,"FY 2020 - 2021 ESG APPLICATION"]
[]
[null,null,"I.   APPLICANT INFORMATION"]
[]
[null,null,null,"Application Year:",1]
[]
[]
[null,null,null,"Agency"]
[]
[null,null,null,"Applicant Name:",null,null,null,null,null,null,null,null,"Tax ID No.:"]
[]
[null,null,null,"Mailing Address:"]
[null,null,null,null,"Street",null,null,null,null,"City",null,null,"State",null,"Zip",null,"County"]
[null,null,null,"Physical Address:"]
[null,null,null,null,"Street",null,null,null,null,"City",null,null,"State",null,"Zip",null,"County"]
[null,null,null,"Website URL:"]
[]
[null,null,null,"Contact Person:",null,null,null,null,null,"Contact Email:  "]
[]
[null,null,null,"Business Phone:",null,null,null,null,null,null,"        DUNS Number:"]
[]
[null,null,null,"Business Fax:",null,null,null,null,null,null,"        Fiscal Year End:"]
[]
[null,null,null,"Business Email:"]
[]
[null,null,null,"Enter the total number of years the agency has been in operation:"]
[]
[null,null,null,"Enter the total number of part-time staff employed by the agency:"]
[]
[null,null,null,"Enter the total number of full-time staff employed by the agency:"]
[]
[null,null,null,"Briefly describe the agency's mission:"]
[]
[]
[]
[null,null,null,"Board President (BP)"]
[]
[null,null,null,"BP Name:"]
[]
[null,null,null,"Address:"]
[null,null,null,null,null,null,null,null,null,"City",null,null,"State",null,"Zip",null,"County"]
[null,null,null,"Phone:"]
[]
[null,null,null,"Business Fax:"]
[]
[null,null,null,"Business Email:"]
[]
[null,null,null,"Does the Agency have a current or former homeless person on the board?"]
[]
[]
[null,null,null,"Executive Director (ED)"]
[]
[null,null,null,"ED Name:"]
[]
[null,null,null,"Address:"]
[null,null,null,null,null,null,null,null,null,"City",null,null,"State",null,"Zip",null,"County"]
[null,null,null,"Phone:"]
[]
[null,null,null,"Business Fax:"]
[]
[null,null,null,"Business Email:"]
[]
[]
[null,null,null,"Service Area"]
[]
[null,null,null,"List the Service Area that the Agency covers:"]
[]
[]
[null,null,null,"Population of Service Area (2010 Census):"]
[]
[null,null,null,"Agency's Key Personnel  "]
[null,null,null,"Please list staff or proposed staff, whose job function plays a key role in the operation of the program.  Indicate if the staff member is a part- or full-time employee, and the number of years the staff person has been in the position.  Attach a resume for each key staff member.   "]
[null,null,null,"Name",null,null,"Title",null,null,null,"Phone",null,null,null,"# of Yrs in this position",null,"Employment"]
[]
[]
[]
[]
[]
[]
[]
[]
[]
[]
[]
[]
[null,null,null,"Partnerships"]
[null,null,null,"Provide a list of organizations that the agency collaborates with to provide comprehensive services.  Attach a copy of the Memorandum of Understanding (MOU) for each partnership listed."]
[]
[null,null,null,"Organization",null,null,"Location",null,null,null,"Services Provided"]

{"sheet":"Eligibility","index":3,"n_rows":21,"n_cols":15,"rows_kept":21,"cut":false,"hidden":false,"merged":[[2,1,2,15],[1,1,1,15],[11,3,11,11],[7,3,7,11],[8,3,8,11],[9,3,9,11],[10,3,10,11],[18,3,18,11],[19,3,19,11],[20,3,20,11],[12,3,12,11],[13,3,13,11],[14,3,14,11],[15,3,15,11],[16,3,16,11],[17,3,17,11]]}
[]
[null,"II.   ELIGIBILITY"]
[]
[null,{"$f":"IF('Applicant Info'!E17=\"\",\"\",'Applicant Info'!E17)","v":""},null,null,null,null,null,null,null,null,null,null,null,null,{"$f":"'Applicant Info'!C8","v":"FY 2020 - 2021 ESG APPLICATION"}]
[]
[null,null,"Answer the following questions:"]
[]
[null,null,"1.","Applicant has a written policy designed to ensure that their facility is free from illegal use, possession, or distribution of drugs or alcohol by its beneficiaries and employees.  Attach documentation."]
[null,null,"2.","Applicant has a written policy to ensure that activities conducted under ESG conforms to the nondisrimination and equal opportunity requirements contained in 24 CFR Part  576.407(a).  Attach documentation."]
[null,null,"3.","Applicant will make known that use of the facilities, assistance and services are available to all individuals on a  nondiscrimantory basis per 24 CFR Part 576.407(b)."]
[null,null,"4.","Applicant has policy outlining the confidentiality of victims of domestic violence and the location of shelters for such persons.  Attach documentation."]
[null,null,"5.","If Applicant is a primarily religious organization, do you agree to provide all eligible activities under this program in a manner that is free from religious influences in accordance with 24 CFR Part 576.406."]
[null,null,"6.","If the Applicant is a nonprofit organization, do you have approval of the proposed project from the unit of general local government?  Attach documentation."]
[null,null,"7.","Is the amount of match, consisting of funds, value of service, value of building, or value of materials to be provided, equal to or greater than the ESG funds requested?"]
[null,null,"8.","If the proposed grant is for street outreach, emergency shelter operations, homeless prevention, rapid re-housing, housing relocation or short to medium-term rental assistance, the Applicant agrees to provide services or shelter to homeless individuals and families at least for the period during which ESG funds are provided."]
[null,null,"9.","Applicant agrees that all housing, whether the homeless shelter or the rental housing units assisted with ESG, will meet the shelter and housing standards outlined under 24 CFR Part 576.403."]
[null,null,"10.","Applicant agrees that all individuals and families, eligible for ESG will be given assistance to obtain housing, medical and mental health treatment, counseling, supervision, and other services essential for achieving independent living; including assistance in obtaining other federal, state, local and private assistance."]
[null,null,"11.","Applicant involves homeless or formely homeless individuals in policy-making or decisions regarding its facilities, services, or other ESG funded activities.  Attach documentation."]
[null,null,"12.","Is your agency an active member of a Continuum of Care?  (Aligning goals with CoC priorities, participating in coordinated entry, HMIS or comparable database, PIT, and CoC committee work.)  Attach documentation."]
[null,null,"13.","Does your agency have the capacity and the available cash flow to effectively administer this grant based on the reimbursement requirements?"]
[null,null,"14.","Does your service locale have adequate housing stock available to meet the needs of providing habitable housing in the community?"]

{"sheet":"Project Info","index":4,"n_rows":65,"n_cols":21,"rows_kept":65,"cut":false,"hidden":false,"merged":[[53,3,53,20],[54,3,54,20],[56,3,56,20],[1,1,1,22],[2,1,2,22],[11,3,11,9],[12,3,12,9],[49,14,49,19],[6,5,6,12],[30,3,30,20],[32,3,32,20],[33,3,33,20],[59,3,59,20],[57,3,57,20],[60,3,60,20],[65,3,65,20],[69,3,69,13],[69,16,69,17]]}
[]
[null,"III.   PROJECT INFORMATION"]
[null,"The Project Information sectionn as well as the Project Narrative must accurately describe the proposed project and how the requested ESG funds will be used.  Applicants must provide clear and concise answers to all questions.."]
[null,{"$f":"IF('Applicant Info'!E17=\"\",\"\",'Applicant Info'!E17)","v":""},null,null,null,null,null,null,null,null,null,null,null,null,null,null,null,null,null,null,{"$f":"Eligibility!O4","v":"FY 2020 - 2021 ESG APPLICATION"}]
[]
[]
[null,null,"Project Name:"]
[]
[]
[null,null,"Type of services to be provided?  (Check all that apply.)"]
[]
[null,null,null,"Services for At-risk Children/Youth/Victim ",null,null,null,null,null,null,null,"Adult Education"]
[null,null,null,"of Human Trafficking",null,null,null,null,null,null,null,"Utility Assistance"]
[null,null,null,"Service for Persons with Serious Mental Illness",null,null,null,null,null,null,null,"Financial Literacy"]
[null,null,null,"Homeless Services",null,null,null,null,null,null,null,"Services for Persons Recently Incarcerate or on Parole"]
[null,null,null,"Services for Victims of Domestic Violence",null,null,null,null,null,null,null,"Service for Persons with Substance Abuse Problems"]
[null,null,null,"Emergency Food Assistance",null,null,null,null,null,null,null,"Other General Low/Moderate Income Services"]
[]
[null,null,"Project Type"]
[]
[null,null,"A.  Emergency Shelter / Street Outreach"]
[]
[null,null,"1.","Site Control (Shelter only)"]
[]
[null,null,false,"Applicant owns property.",null,null,null,null,null,null,false,"Applicant has a lease on the property."]
[null,null,null,"Date acquired:",null,null,null,null,null,null,null,"Expiration date:"]
[]
[null,null,"2.","What is the average number of clients served annually?"]
[]
[null,null,"3.","How do you keep client files confidential?  Do you have a system or proecedures in place?"]
[]
[]
[null,null,"4.","What are your eligibility requirements to access your emergency shelter and what are the reasons someone may be turned away or asked to leave your shelter?"]
[]
[]
[null,null,"5.","Average number of days that clients stay in shelter:"]
[]
[null,null,"6","Percentage of clients that exited to permanent housing?"]
[]
[null,null,7,"What is the number of unsheltered homeless persons engaged annually?"]
[]
[null,null,8,"What is the average number of unsheltered persons engaged and connected to emergency shelter, housing, or"]
[null,null,null,"critical services?"]
[]
[]
[null,null,"B.  Rapid Re-Housing / Homeless Prevention"]
[]
[null,null,"1.","What is the average number of persons the program serves annually?"]
[]
[null,null,"2.","What is the average amount of assistance provided to a Rapid Re-Housing household?"]
[]
[null,null,"3.","What is the average household AMI the program serves?"]
[]
[null,null,"4.","Describe how housing is located or landlords are identified.  What are the type of programs and services currently offered?  Describe how you use resources within the community to lower barriers to service and proceed with rapidly re-housing clients into permanent housing?"]
[]
[]
[null,null,"5.","What types of methods do you use to develop a housing and services plan for each client?  Describe how direct-client assistance is determined, including its frequency.  Describe how you determine when and how an exit plan is developed."]
[]
[]
[null,null,"6.","Describe how the proposed program in this application will increase exits to permanent housing?  Describe your agency's housing stabilization practices and what case management services you offer to assist client(s) in maintaining permanent housing?  What procedure does the proposed program have in place to prevent future evictions?"]
[]
[]
[null,null,"C.  HMIS "]
[]
[null,null,"1.","Describe how these funds will contribute to your ability to collect, analyze, and report data."]

{"sheet":"Proposed Outcome Measurements","index":5,"n_rows":27,"n_cols":19,"rows_kept":27,"cut":false,"hidden":false,"merged":[[19,2,19,18],[11,3,11,7],[12,3,12,7],[13,3,13,7],[1,1,1,19],[2,1,2,19],[8,15,8,16],[8,17,8,18],[8,9,8,10],[8,11,8,12],[8,13,8,14],[10,3,10,7],[21,9,21,10],[21,11,21,12],[21,13,21,14],[21,15,21,16],[21,17,21,18]]}
[]
[null,"IV.   PROPOSED PERFORMANCE OUTCOME MEASUREMENTS"]
[null,"Proposed Performance Outcome Measurement should reflect the needs and goals expected to be met during the activity period.  (Enter \"N/A\" for indicators that do not apply to your project)."]
[null,{"$f":"IF('Applicant Info'!E17=\"\",\"\",'Applicant Info'!E17)","v":""},null,null,null,null,null,null,null,null,null,null,null,null,null,null,null,null,{"$f":"Eligibility!O4","v":"FY 2020 - 2021 ESG APPLICATION"}]
[]
[null,null,"Persons/Households to be Served"]
[null,null,"Enter the expected outcome for the number of persons and/or households (HH) to be served within the grant period for each quarter."]
[]
[null,null,null,null,null,null,null,null,null,"Q1",null,"Q2",null,"Q3",null,"Q4",null,"TOTAL"]
[null,null,null,null,null,null,null,null,null,"Persons","HH","Persons","HH","Persons","HH","Persons","HH","Persons","HH"]
[null,null,null,"Proposed number of person(s) or households to be served?",null,null,null,null,null,null,null,null,null,null,null,null,null,{"$f":"J11+L11+N11+P11","v":0},{"$f":"K11+M11+O11+Q11","v":0}]
[null,null,null,"Proposed number of homeless individuals and/or households that will be served by Rapid-Re-housing?",null,null,null,null,null,null,null,null,null,null,null,null,null,{"$f":"J12+L12+N12+P12","v":0},{"$f":"K12+M12+O12+Q12","v":0}]
[null,null,null,"Number of individuals and/or households that will be served by Homeless Prevention funding?",null,null,null,null,null,null,null,null,null,null,null,null,null,0,0]
[null,null,null,"Number of individuals and or households that will be sheltered?",null,null,null,null,null,null,null,null,null,null,null,null,null,0,0]
[null,null,null,"Total Individuals/Households to be served:",null,null,null,null,null,{"$f":"SUM(J11:J14)","v":0},0,0,0,0,0,0,0,0,0]
[]
[]
[]
[null,null,"Income Level of Persons/Households to be Served"]
[null,null,"Enter the expected number or percentage of persons for each income level to be served within the grant period for each quarter."]
[]
[null,null,null,null,null,null,null,null,null,"Q1",null,"Q2",null,"Q3",null,"Q4",null,"TOTAL"]
[null,null,null,null,null,null,null,null,null,"Number","Percent","Number","Percent","Number","Percent","Number","Percent","Number","Percent"]
[null,null,null,null,null,"Extremely Low Income (ELI)",null,null,null,null,null,null,null,null,null,null,null,{"$f":"J24+L24+N24+P24","v":0},0]
[null,null,null,null,null,"Low Income (LI)",null,null,null,null,null,null,null,null,null,null,null,0,0]
[null,null,null,null,null,"Moderate Income (MI)",null,null,null,null,null,null,null,null,null,null,null,0,0]
[null,null,null,null,null,"Total to be served:",null,null,null,{"$f":"SUM(J24:J26)","v":0},0,0,0,0,0,0,0,0,0]

{"sheet":"Activities","index":6,"n_rows":154,"n_cols":18,"rows_kept":154,"cut":false,"hidden":false,"merged":[[6,2,6,17],[54,4,54,17],[1,1,1,18],[2,1,2,18],[70,3,70,18],[71,3,71,18],[19,3,19,6],[24,3,24,6],[64,1,64,18],[31,3,31,16],[67,2,67,18],[101,4,101,18],[109,4,109,18],[113,3,113,18],[115,3,115,18],[72,3,72,18],[73,3,73,18],[74,3,74,18],[76,3,76,18],[84,3,84,18],[75,3,75,18],[80,2,80,18],[92,2,92,18],[91,2,91,6],[153,3,153,18],[129,2,129,8],[53,3,53,11],[129,10,129,12],[120,2,120,18],[122,2,122,18],[124,2,124,18],[66,2,66,6],[79,2,79,6],[117,2,117,7],[117,8,117,10],[130,2,130,18],[139,4,139,18],[147,4,147,18],[151,3,151,18],[118,2,118,18]]}
[]
[null,"V.   ACTIVITIES"]
[null,"Activities funded under this section must comply with HUD's standards on participation, data collection, and reporting under a local HMIS.  Applicants should review 24 CFR, Part 576 and MHC's ESG Program Description for clarification and details on services."]
[null,{"$f":"IF('Applicant Info'!E17=\"\",\"\",'Applicant Info'!E17)","v":""},null,null,null,null,null,null,null,null,null,null,null,null,null,null,null,{"$f":"Eligibility!O4","v":"FY 2020 - 2021 ESG APPLICATION"}]
[]
[null,null,"1.  What counties does the Agency propose to serve with this funding?"]
[]
[]
[null,null,"2.  Population to be served:  (Select all that apply)"]
[]
[null,null,null,"Elderly",null,null,null,null,null,null,null,"Domestic Violence Victims"]
[null,null,null,"Homeless individuals and/or households",null,null,null,null,null,null,null,"Individuals and/or households with serious mental illness"]
[null,null,null,"At-risk of homelessness individuals and/or households",null,null,null,null,null,null,null,"Individuals and/or households with substance abuse issues"]
[null,null,null,"Low Income individuals and/or households",null,null,null,null,null,null,null,"Victims of human trafficking"]
[null,null,null,"Homeless Youth",null,null,null,null,null,null,null,"Other (please explain in the Project Narrative)"]
[null,null,null,"Chronic Homeless individuals and/or households"]
[]
[null,null,"3.  Select the services that will be provided with the ESG funds.  (Select all that apply)"]
[]
[null,null,false,"Street Outreach"]
[null,null,null,null,"Engagement",null,null,null,null,null,null,"Emergency mental health services"]
[null,null,null,null,"Case Management",null,null,null,null,null,null,"Transportation (includes public transportation)"]
[null,null,null,null,"Emergency health services"]
[]
[null,null,false,"Emergency Shelter"]
[null,null,null,null,"Shelter Operations/Maintenance Activities",null,null,null,null,null,null,"Essential Services"]
[null,null,null,null,null,"Food, furnishings and supplies",null,null,null,null,null,null,"Case Management*"]
[null,null,null,null,null,"Minor or routine repairs",null,null,null,null,null,null,"Transportation"]
[null,null,null,null,null,"Rent, security, fuel, utilities and equipment"]
[null,null,null,null,null,"Ins and Professional Services (Accounting)"]
[]
[null,null,false,"Homeless Prevention Component (At Risk of Honmelessness Individuals and/or Households)"]
[null,null,null,null,"Housing Relocation and Stabilization Services"]
[null,null,null,null,null,"Financial Assistance Cost",null,null,null,null,null,"Services Cost"]
[null,null,null,null,null,null,"Rental Application Fees",null,null,null,null,null,"Housing search and placement"]
[null,null,null,null,null,null,"Security Deposits",null,null,null,null,null,"Housing stability case management*"]
[null,null,null,null,null,null,"Last Month's Rent",null,null,null,null,"Max amounts and periods of assistance"]
[null,null,null,null,null,null,"Utility Deposits",null,null,null,null,"Use with other subsidies"]
[null,null,null,null,null,null,"Utility Payments"]
[null,null,null,null,null,null,"Moving Costs"]
[null,null,null,null,"Short/Medium-Term Rental Assistance"]
[]
[null,null,false,"Rapid Re-Housing Component (Homeless Individuals and/or Households)",null,null,null,null,null,null,null,null,null,"HUD PRIORITY"]
[null,null,null,null,"Housing Relocation and Stabilization Services"]
[null,null,null,null,null,"Financial Assistance Costs",null,null,null,null,null,"Services Cost"]
[null,null,null,null,null,null,"Rental Application Fees",null,null,null,null,null,"Housing search and placement"]
[null,null,null,null,null,null,"Security Deposits",null,null,null,null,null,"Housing stability case management*"]
[null,null,null,null,null,null,"Last Month's Rent",null,null,null,null,"Maximum amounts and periods of assistance"]
[null,null,null,null,null,null,"Utility Deposits",null,null,null,null,"Use with other subsidies"]
[null,null,null,null,null,null,"Utility Payments"]
[null,null,null,null,null,null,"Moving Costs"]
[null,null,null,null,"Short/Medium-Term Rental Assistance"]
[]
[null,null,false,"HMIS (Homeless Management Information System"]
[null,null,null,null,"Eligible Costs (ESG funds may be used to pay the costs of contributing data to the HMIS designated by the CoC"]
[null,null,null,null,null,"Purchasing/leasing computer hardware",null,null,null,null,null,"Charges for utilities to operate or contribute data to the HMIS"]
[null,null,null,null,null,"Purchasing software or software licenses",null,null,null,null,null,"Salaries for operating HMIS"]
[null,null,null,null,null,"Purchasing or leasing equipment",null,null,null,null,null,"Staff travel/attend HUD-sponsored/approved HMIS trainining"]
[null,null,null,null,null,"Obtaining technical support",null,null,null,null,null,"Staff travel cost to conduct intake"]
[null,null,null,null,null,"Leasing office space",null,null,null,null,null,"Participation fees charged by the HMIS Lead"]
[null,null,null,null,"General Restrictions"]
[]
[]
[]
[null,"PROGRAM COMPONENTS AND ELIGIBLE ACTIVITIES"]
[]
[null,null,"STREET OUTREACH ACTIVITIES",null,null,null,null,"<Go back>"]
[null,null,"Essential Services related to reaching out to unsheltered homeless individuals and families, connecting them with emergency shelter, housing, or critical services, and providing them with urgent, non-facility-based care."]
[]
[null,null,"Eligible Costs are:"]
[null,null,"A.","Engagement:  The cost of activities to locate, identify, and build relationships with unsheltered homeless people and engage them for the purpose of providing immediate support, intervention, and connections with homeless assistance programs and/or mainstream social services and housing programs."]
[null,null,"B.","Case Management:  The cost of assessing hhousing and service needs, arranging, coordinating, and monitoring the delivery of individualized services to meet the needs of the program participant."]
[null,null,"C.","Emergency Health Services:  Cost are for direct outpatient treatment of medical conditions provided by licensed medical professionals, ONLY to be used if other appropriate health services are unavailable within the area."]
[null,null,"D.","Emergency Mental Health Services:  Cost are for direct outpatient treatment of medical conditions provided by licensed medical professionals, ONLY to be used if other appropriate health services are unavailable within the area."]
[null,null,"E.","Emergency Mental Health Services:  Cost are for direct outpatient treatment of medical conditions provided by licensed medical professionals, ONLY to be used if other appropriate health services are unavailable within the area."]
[null,null,"F.","Transportation:  The transportation costs of travel by outreach workers, social workers, medical professionals, or other service providers are eligible, provided that this travel takes place during the provision of services eligible under this section.  The costs of transporting unsheltered people to emergency shelters or other service facilities are also eligible."]
[null,null,"G.","Services for Special Populations:  Funds may be used to provide services for homeless youth, victim services, and services for people living with HIV/AIDS."]
[]
[]
[null,null,"EMERGENCY SHELTER",null,null,null,null,"<Go back>"]
[null,null,"Renovation, including major rehabilitation or conversion, of a building to serve as an emergency shelter.  The emergency shelter must be owned by a government entity or private nonprofit organization.  The shelter must serve homeless persons for at least 3 or 10 years, depending on the type of renovation and the value of the building.  Note:  Property acquisition and new construction are ineligible ESG activities."]
[]
[null,null,"Eligible Activities are:"]
[null,null,"A.","Shelter Operations"]
[null,null,null,"Eligible Expenses include cost of maintenance, rent, security, fuel, equipment, insurance, utilities, food furnishing and supplies necessary for the operation of the emergency shelter.  Where no appropriate emergency shelter is available for a homeless family or individual, eligible costs may also include a hotel or motel voucher (7 days without approval) for the family or individual.  Reimbursement from ESG funding for staff costs/case management is allowed for up to 50% of the total ESG grant received."]
[]
[null,null,"B.","Essential Services"]
[null,null,null,"     Eligible Program Participants:  Individuals and families who are homeless."]
[null,null,null,"     Eligible Expenses:  Case management and transportation."]
[]
[]
[null,null,"HOMELESS PREVENTION ACTIVITIES",null,null,null,null,"<Go back>"]
[null,null,"Housing relocation and stabilization services and short-and/or medium-term rental assistance as necessary to prevent the individual or family from moving to an emergency shelter, a place not meant for human habitation, or another place described in HUD's homes definition."]
[]
[null,null,"Eligible Costs are:"]
[null,null,"A.","Cost of contributing data to the HMIS designated by the CoC:"]
[null,null,null,1,"Purchasing or leasing computer hardware."]
[null,null,null,2,"Purchasing software or software licenses."]
[null,null,null,3,"Purchasing or leasing equipment, including telephones, fax machines, and furniture."]
[null,null,null,4,"Obtaining technical support pertaining to ESG."]
[null,null,null,5,"Leasing office space."]
[null,null,null,6,"Paying charges for electricity, gas, water, phone service, and high-speed data transmission necessary to operate or contribute data to the HMIS."]
[null,null,null,7,"Paying salaries for operating HMIS:"]
[null,null,null,null,"a)","Completing data entry"]
[null,null,null,null,"b)","Monitoring and reviewing data quality"]
[null,null,null,null,"c)","Completing data analysis"]
[null,null,null,null,"d)","Reporting to the HMIS Lead"]
[null,null,null,null,"e)","Training staff on using the HMIS or comparable database"]
[null,null,null,null,"f)","Implementing and complying with HMIS requirements"]
[null,null,null,8,"Paying costs of staff to travel to attend HUD-sponsored and HUD-approved training onn HMIS and programs authorized by Title IV of the McKinney-Vento Homeless Assistance Act."]
[null,null,null,9,"Paying staff travel costs to conduct intake."]
[null,null,null,10,"Paying participation fees charged by the HMIS Lead."]
[]
[null,null,"B.","HMIS Lead Agency:  If recipient is the HMIS lead agency, as designated by the Continuum of Care in the most recent fiscal year CoC Homeless Assistance Grants Competition, it may use ESG funds to pay the cost of items listed in 24 CFR 576.107 (2) (i) - (vii)."]
[]
[null,null,"C.","Victim Services Provider/Legal Services Provider:  If the subrecipient is a victim services provider or a legal services provider, it may use ESG funds to establish and operate a comparable database that collects client-level data over time and generate unduplicated aggregate reports based on the data.  Information entered into a comparable database must not be entered directly into or provided to an HMIS."]
[]
[null,null,"RAPID RE-HOUSING ACTIVITIES   HUD PRIORITY",null,null,null,null,null,"<Go back>"]
[null,null,"Housing relocation and stabilization services and/or short-and/or medium-term rental assistance as necessary to help individuals or families living in shelters or in places not meant for human habitation move as quickly as possible into permanent housing and achieve stability in that housing."]
[]
[null,null,"Eligible Participants:  Literally homeless individuals and households currently living in an emergencyy shelter or a place not meant for human habitation and who are extremely low income."]
[]
[null,null,"Housing Relocation and Stabilization Services:  includes moving costs, rental application fees, security deposit, last month's rent if necessary to obtain housing, utility deposits only, utility arrearage, housing search and placement and housing stability case management (ESG reimbursement cannot exceed 50% of ESG funding to include staff costs and other case management)."]
[]
[null,null,"Rental Assistance:  Applicants identify permanent housing uits that meet ESG requirements and enter into a rental assistance agreement with the owner to reserve the unit and subsidize its rent so that eligible program participants have access to the units."]
[null,null,null,"Short-Term Rental Assistance:  up to 3 months"]
[null,null,null,"Medium-Term Rental Assistance:  > 3 months but not more than 24 months"]
[]
[]
[null,null,"HOMELESS MANAGEMENT INFORMATION SYSTEM",null,null,null,null,null,null,null,"<Go back>"]
[null,null,"ESG funds may be used to pay for the costs of participating in and contributing to the HMIS designated by the Continuum of Care for the area."]
[]
[null,null,"Eligible Costs are:"]
[null,null,"A.","Cost of contributing data to the HMIS designated by the CoC:"]
[null,null,null,1,"Purchasing or leasing computer hardware."]
[null,null,null,2,"Purchasing software or software licenses."]
[null,null,null,3,"Purchasing or leasing equipment, including telephones, fax machines, and furniture."]
[null,null,null,4,"Obtaining technical support pertaining to ESG."]
[null,null,null,5,"Leasing office space."]
[null,null,null,6,"Paying charges for electricity, gas, water, phone service, and high-speed data transmission necessary to operate or contribute data to the HMIS."]
[null,null,null,7,"Paying salaries for operating HMIS:"]
[null,null,null,null,"a)","Completing data entry"]
[null,null,null,null,"b)","Monitoring and reviewing data quality"]
[null,null,null,null,"c)","Completing data analysis"]
[null,null,null,null,"d)","Reporting to the HMIS Lead"]
[null,null,null,null,"e)","Training staff on using the HMIS or comparable database"]
[null,null,null,null,"f)","Implementing and complying with HMIS requirements"]
[null,null,null,8,"Paying costs of staff to travel to attend HUD-sponsored and HUD-approved training onn HMIS and programs authorized by Title IV of the McKinney-Vento Homeless Assistance Act."]
[null,null,null,9,"Paying staff travel costs to conduct intake."]
[null,null,null,10,"Paying participation fees charged by the HMIS Lead."]
[]
[null,null,"B.","HMIS Lead Agency:  If recipient is the HMIS lead agency, as designated by the Continuum of Care in the most recent fiscal year CoC Homeless Assistance Grants Competition, it may use ESG funds to pay the cost of items listed in 24 CFR 576.107 (2) (i) - (vii)."]
[]
[null,null,"C.","Victim Services Provider/Legal Services Provider:  If the subrecipient is a victim services provider or a legal services provider, it may use ESG funds to establish and operate a comparable database that collects client-level data over time and generate unduplicated aggregate reports based on the data.  Information entered into a comparable database must not be entered directly into or provided to an HMIS."]

{"sheet":"Match Funds","index":7,"n_rows":76,"n_cols":13,"rows_kept":76,"cut":false,"hidden":false,"merged":[[30,2,30,8],[20,10,20,12],[21,10,21,12],[23,2,23,8],[24,2,24,8],[25,2,25,8],[26,2,26,8],[27,2,27,8],[23,10,23,12],[24,10,24,12],[25,10,25,12],[26,10,26,12],[27,10,27,12],[28,10,28,12],[29,10,29,12],[30,10,30,12],[28,2,28,8],[29,2,29,8],[1,1,1,13],[2,1,2,13],[21,2,21,8],[22,2,22,8],[18,2,18,12],[6,2,6,12],[9,3,9,4],[10,3,10,4],[11,3,11,4],[12,3,12,4],[13,3,13,4],[22,10,22,12],[17,2,17,4]]}
[]
[null,"VI.   MATCH FUNDS"]
[null,"ESG funds require a 100% dollar for dollar match. Matching funds must equal or exceed the total ESG funding request.  In addition, at least 25% of the Total Funds Request must be matched with liquid assets."]
[null,{"$f":"IF('Applicant Info'!E17=\"\",\"\",'Applicant Info'!E17)","v":""},null,null,null,null,null,null,null,null,null,null,{"$f":"Eligibility!O4","v":"FY 2020 - 2021 ESG APPLICATION"}]
[]
[null,null,"Funding Request"]
[null,null,"Below is the list of eligible activities selected in the Activities section of the application.  Enter the amount of funds being requested for each activity.  Request only those funds expected to be expended over the twelve (12) month contract period.  Round to the nearest dollar ($1.00)."]
[]
[null,null,null,null,null,null,null,null,null,"Amount Requested"]
[null,null,null,{"$f":"IF(Activities!C20=TRUE,\"X\",\"\")","v":""},null,"  Street Outreach",null,null,null,0]
[null,null,null,{"$f":"IF(Activities!C25=TRUE,\"X\",\"\")","v":""},null,"  Emergency Shelter",null,null,null,0]
[null,null,null,{"$f":"IF(Activities!C43=TRUE,\"X\",\"\")","v":""},null,"  Rapid Re-housing",null,null,null,0]
[null,null,null,{"$f":"IF(Activities!C32=TRUE,\"X\",\"\")","v":""},null,"  Homelessness Prevention",null,null,null,0]
[null,null,null,{"$f":"IF(Activities!C54=TRUE,\"X\",\"\")","v":""},null,"  HMIS",null,null,null,0]
[null,null,null,"TOTAL ESG FUNDS REQUEST:",null,null,null,null,null,{"$f":"SUM(J10:J14)","v":0}]
[]
[]
[null,null,"Matching Funds"]
[null,null,"Matching contributions may be obtained from any source, including any Federal source other than the ESG program, as well as state, local, and private sources.  Matching funds/services must be spent on /used for ESG-eligible activities and must benefit the ESG program participants. Points will be given based on the clarity of proposed match.  Match (in-kind or cash) must be explained as to how its use relates to the activities allowed under the McKinney Homeless Assistance Act, as amended.  Match must be verified to include resolutions and letters detailing sources of funds.  If match comes from the city or the county, then the source of funds (general fund) must be identified.  Letters from banks, organizations, or donors specifying donated items will be needed.  Volunteer hours and fundraising efforts will need to be discussed in enough detail for each volunteer to establish validity.  The service area or activities for which volunteer hours are used must be clearly indicated. "]
[]
[null,null,"List all funding sources committed to the proposed project.",null,null,null,null,null,null,"Amount","Supporting Documentation"]
[null,null,null,null,null,null,null,null,null,0]
[null,null,null,null,null,null,null,null,null,0]
[null,null,null,null,null,null,null,null,null,0]
[null,null,null,null,null,null,null,null,null,0]
[null,null,null,null,null,null,null,null,null,0]
[null,null,null,null,null,null,null,null,null,0]
[null,null,null,null,null,null,null,null,null,0]
[null,null,null,null,null,null,null,null,null,0]
[null,null,null,null,null,null,null,null,null,0]
[null,null,null,null,null,null,null,null,null,0]
[null,null,"Total Match:",null,null,null,null,null,null,{"$f":"SUM(J22:J31)","v":0}]
[null,null,"Gap:",null,null,null,null,null,null,{"$f":"J15-J32","v":0}]
[null,null,"Does Applicant meet the 100% dollar for dollar match requirement?",null,null,null,null,null,null,{"$f":"IF(J33>0,\"No\",\"Yes\")","v":"Yes"}]
[]
[]
[]
[]
[]
[]
[]
[]
[]
[]
[]
[]
[]
[]
[]
[]
[]
[]
[]
[]
[]
[]
[]
[]
[]
[]
[]
[]
[]
[]
[]
[]
[]
[]
[]
[]
[]
[]
[]
[null,null,"In order to meet the matching requirement, the matching contributions must:"]
[]
[null,null,null,"be provided after the date that HUD signs"]

{"sheet":"Project Budget","index":8,"n_rows":73,"n_cols":12,"rows_kept":73,"cut":false,"hidden":false,"merged":[[67,5,67,6],[68,5,68,6],[69,5,69,6],[2,1,2,12],[5,8,5,11],[9,2,9,6],[22,2,22,6],[38,2,38,6],[25,2,25,6],[29,2,29,6],[30,2,30,6],[31,2,31,6],[32,2,32,6],[33,2,33,6],[34,2,34,6],[36,2,36,6],[37,2,37,6],[5,2,5,6],[12,2,12,6],[13,2,13,6],[14,2,14,6],[15,2,15,6],[16,2,16,6],[17,2,17,6],[18,2,18,6],[19,2,19,6],[20,2,20,6],[21,2,21,6],[28,2,28,6],[35,2,35,6],[57,8,57,11],[42,2,43,6],[50,2,50,6],[51,2,51,6],[52,2,52,6],[53,2,53,6],[57,2,57,6],[54,2,54,6],[44,2,44,6],[45,2,45,6],[46,2,46,6],[47,2,47,6],[48,2,48,6],[49,2,49,6]]}
[]
[null,"VII.  PROJECT BUDGET "]
[null,"The Emergency Solutions Grant funding must be used in coordination with other funding sources and programs to ensure continuum of services.  The Proposed Budget must provide information on the organization's activities, resources, and expenditures projected for 2020-2021.  Complete as accurately and completely as possible.  Failure to do so may result in a reduction or denial of funding."]
[null,{"$f":"IF('Applicant Info'!E17=\"\",\"\",'Applicant Info'!E17)","v":""},null,null,null,null,null,null,null,null,null,{"$f":"Eligibility!O4","v":"FY 2020 - 2021 ESG APPLICATION"}]
[]
[null,null,"Anticipated Resources",null,null,null,null,null,"Amount Projected"]
[null,null,null,null,null,null,null,null,"First Quarter","Second Quarter","Third Quarter","Fourth Quarter"]
[null,null,"2020 Emergency Solutions Grant (ESG) Request:",null,null,null,null,null,0,0,0,0]
[]
[null,null,"ESG Matching Funds:"]
[]
[null,null,"List the funding source for all ESG matching funds.",null,null,null,null,null,"First Quarter","Second Quarter","Third Quarter","Fourth Quarter"]
[null,null,null,null,null,null,null,null,0,0,0,0]
[null,null,null,null,null,null,null,null,0,0,0,0]
[null,null,null,null,null,null,null,null,0,0,0,0]
[null,null,null,null,null,null,null,null,0,0,0,0]
[null,null,null,null,null,null,null,null,0,0,0,0]
[null,null,null,null,null,null,null,null,0,0,0,0]
[null,null,null,null,null,null,null,null,0,0,0,0]
[null,null,null,null,null,null,null,null,0,0,0,0]
[null,null,null,null,null,null,null,null,0,0,0,0]
[null,null,null,null,null,null,null,null,0,0,0,0]
[null,null,"TOTAL ESG MATCHING FUNDS:",null,null,null,null,null,{"$f":"SUM(I8:I22)","v":0},{"$f":"SUM(J8:J22)","v":0},{"$f":"SUM(K8:K22)","v":0},{"$f":"SUM(L8:L22)","v":0}]
[]
[]
[null,null,"Project Non-Matching Funds:"]
[]
[null,null,"List the funding source for all non-matching funds.",null,null,null,null,null,"First Quarter","Second Quarter","Third Quarter","Fourth Quarter"]
[null,null,null,null,null,null,null,null,0,0,0,0]
[null,null,null,null,null,null,null,null,0,0,0,0]
[null,null,null,null,null,null,null,null,0,0,0,0]
[null,null,null,null,null,null,null,null,0,0,0,0]
[null,null,null,null,null,null,null,null,0,0,0,0]
[null,null,null,null,null,null,null,null,0,0,0,0]
[null,null,null,null,null,null,null,null,0,0,0,0]
[null,null,null,null,null,null,null,null,0,0,0,0]
[null,null,null,null,null,null,null,null,0,0,0,0]
[null,null,null,null,null,null,null,null,0,0,0,0]
[null,null,"TOTAL PROJECT NON-MATCHING FUNDS",null,null,null,null,null,{"$f":"SUM(I29:I38)","v":0},{"$f":"SUM(J29:J38)","v":0},{"$f":"SUM(K29:K38)","v":0},{"$f":"SUM(L29:L38)","v":0}]
[]
[]
[null,null,"Other Sources of Funds (non-ESG Project)"]
[null,null,"List the funding source for all other sources not related to the ESG Project."]
[null,null,null,null,null,null,null,null,"First Quarter","Second Quarter","Third Quarter","Fourth Quarter"]
[null,null,null,null,null,null,null,null,0,0,0,0]
[null,null,null,null,null,null,null,null,0,0,0,0]
[null,null,null,null,null,null,null,null,0,0,0,0]
[null,null,null,null,null,null,null,null,0,0,0,0]
[null,null,null,null,null,null,null,null,0,0,0,0]
[null,null,null,null,null,null,null,null,0,0,0,0]
[null,null,null,null,null,null,null,null,0,0,0,0]
[null,null,null,null,null,null,null,null,0,0,0,0]
[null,null,null,null,null,null,null,null,0,0,0,0]
[null,null,null,null,null,null,null,null,0,0,0,0]
[null,null,"TOTAL OTHER SOURCES OF FUNDS",null,null,null,null,null,{"$f":"SUM(I45:I54)","v":0},{"$f":"SUM(J45:J54)","v":0},{"$f":"SUM(K45:K54)","v":0},{"$f":"SUM(L45:L54)","v":0}]
[]
[]
[null,null,"Anticipated Expenses",null,null,null,null,null,"Amount Projected Per Quarter"]
[]
[null,null,"Projected Project Expenses"]
[null,null,null,null,null,null,null,null,"First Quarter","Second Quarter","Third Quarter","Fourth Quarter"]
[null,null,"Shelter Operations",null,null,null,null,null,0,0,0,0]
[null,null,"Shelter Essential Services",null,null,null,null,null,0,0,0,0]
[null,null,"Street Outreach Activities",null,null,null,null,null,0,0,0,0]
[null,null,"Homelessness Prevention Activities",null,null,null,null,null,0,0,0,0]
[null,null,"Rapid Re-Housing Activities",null,null,null,null,null,0,0,0,0]
[null,null,"Staff Salaries",null,null,null,null,null,0,0,0,0]
[null,null,"Other (Specify:)",null,null,null,null,null,0,0,0,0]
[null,null,null,null,null,null,null,null,0,0,0,0]
[null,null,null,null,null,null,null,null,0,0,0,0]
[null,null,"Total Expenses by Quarter:",null,null,null,null,null,{"$f":"SUM(I40:I70)","v":0},{"$f":"SUM(J40:J70)","v":0},{"$f":"SUM(K40:K70)","v":0},{"$f":"SUM(L40:L70)","v":0}]
[]
[null,null,"TOTAL EXPENSES:",null,null,null,null,null,null,null,null,{"$f":"I71+J71+K71+L71","v":0}]

{"sheet":"Expense Details","index":9,"n_rows":111,"n_cols":8,"rows_kept":111,"cut":false,"hidden":false,"merged":[[6,3,6,4],[7,3,7,4],[8,3,8,4],[14,3,14,4],[15,3,15,4],[9,3,9,4],[10,3,10,4],[13,3,13,4],[5,2,5,7],[31,2,31,6],[32,2,32,6],[16,3,16,4],[45,2,45,6],[39,3,39,4],[40,3,40,4],[41,3,41,4],[42,3,42,4],[43,3,43,4],[28,2,28,3],[29,2,29,3],[30,2,30,3],[22,2,22,3],[23,2,23,3],[24,2,24,3],[25,2,25,3],[27,2,27,3],[26,2,26,3],[17,2,17,6],[19,2,19,7],[20,2,20,3],[21,2,21,3],[57,2,57,6],[52,2,52,3],[54,2,54,3],[55,2,55,3],[52,4,52,6],[54,4,54,6],[50,2,50,3],[34,2,34,7],[35,3,35,4],[36,3,36,4],[37,3,37,4],[38,3,38,4],[44,3,44,4],[53,2,53,3],[90,2,90,3],[90,4,90,6],[91,2,91,3],[91,4,91,6],[61,2,61,4],[62,2,62,4],[63,2,63,4],[64,2,64,4],[84,2,84,3],[84,4,84,6],[79,2,79,6],[81,2,81,7],[82,2,82,3],[82,4,82,6],[83,2,83,3],[83,4,83,6],[74,2,74,4],[75,2,75,4],[76,2,76,4],[77,2,77,4],[78,2,78,4],[102,2,102,3],[102,4,102,6],[103,2,103,3],[103,4,103,6],[104,2,104,3],[104,4,104,6],[110,2,110,6],[105,2,105,3],[105,4,105,6],[106,2,106,3],[106,4,106,6],[107,2,107,6],[2,2,2,7],[72,2,72,4],[73,2,73,4],[85,2,85,3],[86,2,86,3],[65,2,65,4],[66,2,66,4],[67,2,67,4],[68,2,68,4],[69,2,69,4],[70,2,70,4],[71,2,71,4],[51,2,51,3],[55,4,55,6],[56,4,56,6],[47,2,47,7],[48,2,48,3],[49,2,49,3],[48,4,48,6],[49,4,49,6],[50,4,50,6],[51,4,51,6],[60,2,60,7],[56,2,56,3],[99,2,99,3],[100,2,100,3],[101,2,101,3],[99,4,99,6],[100,4,100,6],[101,4,101,6],[87,2,87,3],[88,2,88,3],[85,4,85,6],[86,4,86,6],[87,4,87,6],[88,4,88,6],[98,2,98,3],[98,4,98,6],[92,2,92,3],[92,4,92,6],[93,2,93,6],[95,2,95,7],[96,2,96,3],[96,4,96,6],[97,2,97,3],[97,4,97,6],[89,2,89,3],[89,4,89,6]]}
[]
[null,"VIII.   EXPENSE DETAILS"]
[null,null,"Expense details breaks down all the expenses listed on the Project Budget worksheet by categories:  Salary and Wages, Fringe Benefits, Transportation, Equipment, Operating Expenses, Consultant/Contractural Costs, and Other Expenses.  The total of all expenses listed on this worksheet should coincide with the Project Budget worksheet."]
[null,{"$f":"IF('Applicant Info'!E17=\"\",\"\",'Applicant Info'!E17)","v":""},null,null,null,null,null,{"$f":"[1]Eligibility!O4","v":"FY 2020 ESG APPLICATION"}]
[]
[null,null,"I.  Salary and Wages"]
[null,null,"Position / Title","Name",null,"Annual Salary","% of time on ESG","Amount"]
[null,null,null,null,null,null,null,{"$f":"F8*G8","v":0}]
[null,null,null,null,null,null,null,{"$f":"F9*G9","v":0}]
[null,null,null,null,null,null,null,0]
[null,null,null,null,null,null,null,0]
[null,null,null,null,null,null,null,0]
[null,null,null,null,null,null,null,0]
[null,null,null,null,null,null,null,0]
[null,null,null,null,null,null,null,0]
[null,null,null,null,null,null,null,0]
[null,null,null,null,null,null,null,0]
[null,null,"Total Salary and Wages:",null,null,null,null,{"$f":"SUM(H8:H17)","v":0}]
[]
[null,null,"II.  Fringe Benefits"]
[null,null,"Fringe Benefits Description",null,"Rate (as a percent of Salary)","% of time on ESG","Annual Salary","Amount"]
[null,null,null,null,null,{"$f":"IF(G8=0,\"\",G8)","v":""},{"$f":"IF(F8=0,\"\",F8)","v":""},{"$f":"IFERROR(E22*F22*G22,0)","v":0}]
[null,null,null,null,null,{"$f":"IF(G9=0,\"\",G9)","v":""},{"$f":"IF(F9=0,\"\",F9)","v":""},{"$f":"IFERROR(E23*F23*G23,0)","v":0}]
[null,null,null,null,null,{"$f":"IF(G10=0,\"\",G10)","v":""},{"$f":"IF(F10=0,\"\",F10)","v":""},0]
[null,null,null,null,null,null,null,0]
[null,null,null,null,null,null,null,0]
[null,null,null,null,null,{"$f":"IF(G11=0,\"\",G11)","v":""},{"$f":"IF(F11=0,\"\",F11)","v":""},0]
[null,null,null,null,null,{"$f":"IF(G14=0,\"\",G14)","v":""},{"$f":"IF(F14=0,\"\",F14)","v":""},0]
[null,null,null,null,null,{"$f":"IF(G15=0,\"\",G15)","v":""},{"$f":"IF(F15=0,\"\",F15)","v":""},0]
[null,null,null,null,null,{"$f":"IF(G16=0,\"\",G16)","v":""},{"$f":"IF(F16=0,\"\",F16)","v":""},0]
[null,null,null,null,null,{"$f":"IF(G17=0,\"\",G17)","v":""},{"$f":"IF(F17=0,\"\",F17)","v":""},0]
[null,null,"Total Fringe Benefits:",null,null,null,null,{"$f":"SUM(H22:H31)","v":0}]
[null,null,"Total Salary and Wages and Fringe Benefits:",null,null,null,null,{"$f":"H18+H32","v":0}]
[]
[null,null,"III. Transportation Costs"]
[null,null,"Purpose of Travel","Location",null,"Miles Traveled","Rate","Amount"]
[null,null,null,null,null,null,null,{"$f":"F37*G37","v":0}]
[null,null,null,null,null,null,null,0]
[null,null,null,null,null,null,null,0]
[null,null,null,null,null,null,null,0]
[null,null,null,null,null,null,null,0]
[null,null,null,null,null,null,null,0]
[null,null,null,null,null,null,null,0]
[null,null,null,null,null,null,null,0]
[null,null,null,null,null,null,null,0]
[null,null,"Total Transportation:",null,null,null,null,{"$f":"SUM(H37:H45)","v":0}]
[]
[null,null,"IV. Equipment Costs"]
[null,null,"Equipment",null,"Description / Time / Rate",null,null,"Amount"]
[]
[]
[]
[]
[]
[]
[]
[]
[null,null,"Total Equipment:",null,null,null,null,{"$f":"SUM(H50:H57)","v":0}]
[]
[]
[null,null,"V. Operating Expenses"]
[null,null,"Description",null,null,"Quantity","Each Cost","Amount"]
[null,null,null,null,null,null,null,{"$f":"F63*G63","v":0}]
[null,null,null,null,null,null,null,0]
[null,null,null,null,null,null,null,0]
[null,null,null,null,null,null,null,0]
[null,null,null,null,null,null,null,0]
[null,null,null,null,null,null,null,0]
[null,null,null,null,null,null,null,0]
[null,null,null,null,null,null,null,0]
[null,null,null,null,null,null,null,0]
[null,null,null,null,null,null,null,0]
[null,null,null,null,null,null,null,0]
[null,null,null,null,null,null,null,0]
[null,null,null,null,null,null,null,0]
[null,null,null,null,null,null,null,0]
[null,null,null,null,null,null,null,0]
[null,null,null,null,null,null,null,0]
[null,null,null,null,null,null,null,0]
[null,null,"Total Operating Expenses:",null,null,null,null,{"$f":"SUM(H63:H79)","v":0}]
[]
[null,null,"VI. Consultant / Contractual Cost"]
[null,null,"Name",null,"Description ",null,null,"Amount"]
[]
[]
[]
[]
[]
[]
[]
[]
[]
[]
[null,null,"Total Consultant / Contractual Cost:",null,null,null,null,{"$f":"SUM(H84:H93)","v":0}]
[]
[null,null,"VII. Other Expenses"]
[null,null,"Item",null,"Description",null,null,"Amount"]
[]
[]
[]
[]
[]
[]
[]
[]
[]
[]
[null,null,"Total Other Expenses:",null,null,null,null,{"$f":"SUM(H98:H107)","v":0}]
[]
[]
[null,null,"TOTAL PROJECT EXPENSES:",null,null,null,null,{"$f":"H108+H94+H80+H58+H46+H33","v":0}]

{"sheet":"Budget Summary","index":10,"n_rows":36,"n_cols":11,"rows_kept":36,"cut":false,"hidden":false,"merged":[[16,2,16,9],[25,2,25,8],[22,2,22,9],[13,2,13,8],[2,1,2,11],[6,2,6,8]]}
[]
[null,"IX.  BUDGET SUMMARY"]
[null,"The Emergency Solutions Grant funding must be used in coordination with other funding sources and programs to ensure continuum of services.  The Proposed Budget must provide information on the organization's activities, resources, and expenditures projected for 2020-2021.  Complete as accurately and completely as possible.  Failure to do so may result in a reduction or denial of funding."]
[null,{"$f":"IF('Applicant Info'!E17=\"\",\"\",'Applicant Info'!E17)","v":""},null,null,null,null,null,null,null,null,{"$f":"Eligibility!O4","v":"FY 2020 - 2021 ESG APPLICATION"}]
[]
[]
[null,null,"Anticipated Resources",null,null,null,null,null,null,null,"Amount Projected"]
[]
[null,null,"2020 Emergency Solutions Grant (ESG) Request",null,null,null,null,null,null,null,{"$f":"'Match Funds'!J15","v":0}]
[]
[null,null,"Cash on Hand - Project Budget Deficit",null,null,null,null,null,null,null,0]
[]
[null,null,"Total Matching Funds",null,null,null,null,null,null,null,{"$f":"'Match Funds'!J32","v":0}]
[]
[null,null,"Total Non-Matching Funds",null,null,null,null,null,null,null,{"$f":"SUM('Project Budget'!I39:L39)","v":0}]
[]
[null,null,"TOTAL PROJECT RESOURCES:",null,null,null,null,null,null,null,{"$f":"SUM(K9:K15)","v":0}]
[]
[null,null,"Total Other Sources of Funds (Non-ESG Project)",null,null,null,null,null,null,null,{"$f":"SUM('Project Budget'!I55:L55)","v":0}]
[]
[null,null,"Cash on Hand - Non-Project Deficit",null,null,null,null,null,null,null,0]
[]
[null,null,"TOTAL RESOURCES:",null,null,null,null,null,null,null,{"$f":"K17+K19+K21","v":0}]
[]
[]
[null,null,"Expenses",null,null,null,null,null,null,null,"Amount Projected"]
[]
[null,null,"TOTAL PROJECT EXPENSES:",null,null,null,"(from Project Budget)",null,null,null,{"$f":"SUM('Project Budget'!I71:L71)","v":0}]
[]
[null,null,"Non-Project Related Expenses",null,null,null,null,null,null,null,0]
[]
[null,null,"TOTAL EXPENSES:",null,null,null,null,null,null,null,{"$f":"K28+K30","v":0}]
[]
[null,null,"PROJECT GAP:",null,null,null,null,null,null,null,{"$f":"K17-K28","v":0}]
[]
[null,null,"TOTAL BUDGET GAP:",null,null,null,null,null,null,null,{"$f":"K23-K32","v":0}]

{"sheet":"Past Performance ","index":11,"n_rows":97,"n_cols":13,"rows_kept":97,"cut":false,"hidden":false,"merged":[[74,3,74,11],[76,3,76,9],[61,3,61,9],[1,1,1,13],[2,1,2,13],[22,2,22,12],[42,2,42,11],[44,8,44,10],[24,10,25,10],[59,2,59,11],[14,9,14,10],[16,9,16,10],[16,2,16,8],[18,9,18,10]]}
[]
[null,"X.   PAST PERFORMANCE MEASUREMENTS"]
[null,"Past Performance Measurement is a tool to capture information about program performance to determine how programs and activities are meeting established needs and goals.  (Enter \"N/A\" for indicators that do not apply to your project)."]
[null,{"$f":"IF('Applicant Info'!E17=\"\",\"\",'Applicant Info'!E17)","v":""},null,null,null,null,null,null,null,null,null,null,{"$f":"Eligibility!O4","v":"FY 2020 - 2021 ESG APPLICATION"}]
[]
[null,null,"Enter data for the reporting period listed below.  Provide a report from HMIS (or comparable system) to support the data."]
[]
[]
[null,null,null,null,null,"Reporting Period:",null,"from","2019-06-01","to","2020-05-31"]
[]
[]
[]
[null,null,"2019 ESG Funding"]
[]
[null,null,"Enter the amount of ESG funds awarded during the period listed above:",null,null,null,null,null,null,0]
[]
[null,null,"Enter the amount of ESG funds awarded during the period listed above that has not been expended:",null,null,null,null,null,null,0]
[]
[null,null,"Percentage of previous award not expended:",null,null,null,null,null,null,{"$f":"IF(J15=0,0,J17/J15)","v":0}]
[]
[]
[null,null,"Racial/Ethnic Characteristics"]
[null,null,"Indicate the annual number of clients served for the reporting period listed above.   Include Residential and Non-Residential Services. "]
[]
[null,null,null,null,null,null,null,null,null,null,"Annual Number"]
[]
[null,null,null,"Caucasian"]
[null,null,null,"Black / African American"]
[null,null,null,"Hispanic"]
[null,null,null,"Asian"]
[null,null,null,"American Indian / Alaskan Native"]
[null,null,null,"Native Hawaiian / Other Pacific Islander"]
[null,null,null,"Asian & White"]
[null,null,null,"Black / African American & Causasian"]
[null,null,null,"Black / African American & American Indian / Alaskan Native"]
[null,null,null,"Other Multi-Racial"]
[null,null,null,"TOTAL:",null,null,null,null,null,null,{"$f":"SUM(K27:K36)","v":0}]
[]
[]
[null,null,"ESG Beneficiaries"]
[]
[null,null,"Individuals/Households Served"]
[null,null,"Define the clients served based on the annual number (not percentages) served for the reporting period listed above.  Do not include duplicate persons."]
[]
[null,null,null,null,null,null,null,null,"Annual Number"]
[null,null,null,"Annual number of Individuals",null,null,null,null,"Male","Female","Total"]
[null,null,null,"Unaccompanied 18 and over",null,null,null,null,null,null,{"$f":"SUM(I47:J47)","v":0}]
[null,null,null,"Unaccompanied under 18",null,null,null,null,null,null,{"$f":"SUM(I48:J48)","v":0}]
[null,null,null,null,null,null,null,null,null,null,{"$f":"SUM(K47:K48)","v":0}]
[]
[null,null,null,"Annual number of Households headed by:",null,null,null,null,"Male","Female","Total"]
[null,null,null,"Single 18 and over",null,null,null,null,null,null,{"$f":"I52+J52","v":0}]
[null,null,null,"Single under 18",null,null,null,null,null,null,{"$f":"I53+J53","v":0}]
[null,null,null,"Two Parents - 18 and over"]
[null,null,null,"Two Parents - under 18"]
[null,null,null,"Households with no children"]
[null,null,null,null,null,null,null,null,null,null,{"$f":"SUM(K52:K56)","v":0}]
[]
[null,null,"Special Needs"]
[null,null,"List the number of clients for each subpopulation you served.  If you served subpopulations that fit more than one category, you may place overlapping numbers (duplicate persons) on the appropriate lines."]
[]
[null,null,null,"Special Needs Clients",null,null,null,null,null,null,"Number"]
[null,null,null,"Chronically Homeless (Emergency Shelter only)"]
[null,null,null,"Severely Mentally Ill"]
[null,null,null,"Chronic Substance Abuse"]
[null,null,null,"Other Disability"]
[null,null,null,"Veterans"]
[null,null,null,"Persons with HIV/AIDS"]
[null,null,null,"Victims of Domestic Violence"]
[null,null,null,"Elderly"]
[null,null,null,null,null,null,null,null,null,null,{"$f":"SUM(K63:K70)","v":0}]
[]
[]
[]
[null,null,null,"List the number of persons (not percentages) served in Emergency or Transitional Shelters for the reporting period listed above.  Enter \"N/A\" if not applicable."]
[]
[null,null,null,"Shelter Type",null,null,null,null,null,null,"Number of Persons Housed"]
[null,null,null,"Barracks"]
[null,null,null,"Group/Large House"]
[null,null,null,"Scattered Site Apartments"]
[null,null,null,"Single Family Detached House"]
[null,null,null,"Single Room Occupancy"]
[null,null,null,"Mobile Home / Trailer"]
[null,null,null,"Hotel/Motel"]
[null,null,null,"Other"]
[null,null,null,"TOTAL:",null,null,null,null,null,null,{"$f":"SUM(K78:K85)","v":0}]
[]
[]
[null,null,null,"Residential (Emergency or Transitional Shelters)"]
[null,null,null,"Number of Adults served annually"]
[null,null,null,"Number of Children served annually"]
[null,null,null,"TOTAL:",null,null,null,null,null,null,{"$f":"SUM(K90:K91)","v":0}]
[]
[null,null,null,"Non-Residential "]
[null,null,null,"Number of Adults served annually"]
[null,null,null,"Number of Children served annually"]
[null,null,null,"TOTAL:",null,null,null,null,null,null,{"$f":"SUM(K95:K96)","v":0}]

{"sheet":"Certification","index":12,"n_rows":16,"n_cols":13,"rows_kept":16,"cut":false,"hidden":false,"merged":[[13,4,13,7],[11,3,11,9],[7,2,7,12],[1,1,1,13],[2,1,2,13]]}
[]
[null,"XI.   CERTIFICATION"]
[]
[null,{"$f":"IF('Applicant Info'!E17=\"\",\"\",'Applicant Info'!E17)","v":""},null,null,null,null,null,null,null,null,null,null,{"$f":"Eligibility!O4","v":"FY 2020 - 2021 ESG APPLICATION"}]
[]
[]
[]
[null,null,"The Applicant certifies that all information in this application and all information furnished in support of this application is given for the purpose of obtaining funds under the Emergency Solutions Grant (ESG) Program and is true and complete to the best of the Applicant's knowledge and belief.  The Applicant shall not, in the provisions of services, or in any other manner, discriminate against any person on the basis of race, color, creed, religion, sex, national origin, age, familial status or handicap.  Verification of any of the information contained in this application may be obtained from any source  named herein."]
[]
[null,null,{"$f":"IF('Applicant Info'!E17=\"\",\"\",'Applicant Info'!E17)","v":""}]
[]
[null,null,"By:"]
[]
[null,null,null,"Its:"]
[]
[null,null,null,"Date:"]

{"sheet":"Factors.","index":13,"n_rows":88,"n_cols":20,"rows_kept":88,"cut":false,"hidden":true,"merged":[]}
[]
[]
[]
[null,"activity_type",null,null,null,null,"Counties",null,null,null,"employment",null,null,null,"support_docs",null,null,null,null,"app_yr"]
[]
[null,"Emergency Shelter",null,null,null,null,1,null,null,null,"Part-time",null,null,null,"Commitment Letter",null,null,null,null,2020]
[null,"Street Outreach",null,null,null,null,{"$f":"G6+1","v":2},"Adams",null,null,"Full-Time",null,null,null,"Award Letter",null,null,null,null,2021]
[null,"Rapid-Re-housing",null,null,null,null,{"$f":"G7+1","v":3},"Alcorn",null,null,null,null,null,null,"Bank Statement"]
[null,"Homelessness Prevention",null,null,null,null,4,"Amite",null,null,null,null,null,null,"Other (Explain in Project Narrative)"]
[null,"HMIS",null,null,null,null,5,"Attala"]
[null,null,null,null,null,null,6,"Benton"]
[null,null,null,null,null,null,7,"Bolivar"]
[null,null,null,null,null,null,8,"Calhoun"]
[null,null,null,null,null,null,9,"Carroll"]
[null,null,null,null,null,null,10,"Chickasaw"]
[null,null,null,null,null,null,11,"Choctaw"]
[null,null,null,null,null,null,12,"Claiborne"]
[null,null,null,null,null,null,13,"Clarke"]
[null,null,null,null,null,null,14,"Clay"]
[null,null,null,null,null,null,15,"Coahoma"]
[null,null,null,null,null,null,16,"Copiah"]
[null,null,null,null,null,null,17,"Covington"]
[null,null,null,null,null,null,18,"DeSoto"]
[null,null,null,null,null,null,19,"Forrest"]
[null,null,null,null,null,null,20,"Franklin"]
[null,null,null,null,null,null,21,"George"]
[null,null,null,null,null,null,22,"Greene"]
[null,null,null,null,null,null,23,"Grenada"]
[null,null,null,null,null,null,24,"Hancock"]
[null,null,null,null,null,null,25,"Harrison"]
[null,null,null,null,null,null,26,"Hinds"]
[null,null,null,null,null,null,27,"Holmes"]
[null,null,null,null,null,null,28,"Humphreys"]
[null,null,null,null,null,null,29,"Issaquena"]
[null,null,null,null,null,null,30,"Itawamba"]
[null,null,null,null,null,null,31,"Jackson"]
[null,null,null,null,null,null,32,"Jasper"]
[null,null,null,null,null,null,33,"Jefferson"]
[null,null,null,null,null,null,34,"Jefferson Davis"]
[null,null,null,null,null,null,35,"Jones"]
[null,null,null,null,null,null,36,"Kemper"]
[null,null,null,null,null,null,37,"Lafayette"]
[null,null,null,null,null,null,38,"Lamar"]
[null,null,null,null,null,null,39,"Lauderdale"]
[null,null,null,null,null,null,40,"Lawrence"]
[null,null,null,null,null,null,41,"Leake"]
[null,null,null,null,null,null,42,"Lee"]
[null,null,null,null,null,null,43,"Leflore"]
[null,null,null,null,null,null,44,"Lincoln"]
[null,null,null,null,null,null,45,"Lowndes"]
[null,null,null,null,null,null,46,"Madison"]
[null,null,null,null,null,null,47,"Marion"]
[null,null,null,null,null,null,48,"Marshall"]
[null,null,null,null,null,null,49,"Monroe"]
[null,null,null,null,null,null,50,"Montgomery"]
[null,null,null,null,null,null,51,"Neshoba"]
[null,null,null,null,null,null,52,"Newton"]
[null,null,null,null,null,null,53,"Noxubee"]
[null,null,null,null,null,null,54,"Oktibbeha"]
[null,null,null,null,null,null,55,"Panola"]
[null,null,null,null,null,null,56,"Pearl River"]
[null,null,null,null,null,null,57,"Perry"]
[null,null,null,null,null,null,58,"Pike"]
[null,null,null,null,null,null,59,"Pontotoc"]
[null,null,null,null,null,null,60,"Prentiss"]
[null,null,null,null,null,null,61,"Quitman"]
[null,null,null,null,null,null,62,"Rankin"]
[null,null,null,null,null,null,63,"Scott"]
[null,null,null,null,null,null,64,"Sharkey"]
[null,null,null,null,null,null,65,"Simpson"]
[null,null,null,null,null,null,66,"Smith"]
[null,null,null,null,null,null,{"$f":"G71+1","v":67},"Stone"]
[null,null,null,null,null,null,68,"Sunflower"]
[null,null,null,null,null,null,69,"Tallahatchie"]
[null,null,null,null,null,null,70,"Tate"]
[null,null,null,null,null,null,71,"Tippah"]
[null,null,null,null,null,null,72,"Tishomingo"]
[null,null,null,null,null,null,73,"Tunica"]
[null,null,null,null,null,null,74,"Union"]
[null,null,null,null,null,null,75,"Walthall"]
[null,null,null,null,null,null,76,"Warren"]
[null,null,null,null,null,null,77,"Washington"]
[null,null,null,null,null,null,78,"Wayne"]
[null,null,null,null,null,null,79,"Webster"]
[null,null,null,null,null,null,80,"Wilkinson"]
[null,null,null,null,null,null,81,"Winston"]
[null,null,null,null,null,null,82,"Yalobusha"]
[null,null,null,null,null,null,83,"Yazoo"]